bitfinex-derivatives/quotes_SOLF0:USTF0_20241218
["timestamp","ask_amount","ask_price","bid_price","bid_amount"]
[1734541185129,2.3109,216.42,216.37,2.3114]
[1734541185327,7.2224275,216.43,216.37,2.3114]
[1734541185723,7.2224275,216.43,216.37,9.5338275]
[1734541186329,2.3111,216.41,216.37,9.5338275]
[1734541186528,7.2224275,216.43,216.37,7.2224275]
[1734541186730,12.77992662,216.43,216.37,7.2224275]
[1734541187431,2.3111,216.4,216.37,7.2224275]
[1734541187633,2.26,216.39,216.37,7.2224275]
[1734541187828,2.26,216.39,216.3,3.1196]
[1734541188127,9.4824275,216.39,216.32,7.2224275]
[1734541188327,7.2224275,216.35,216.29,1.5457]
[1734541188534,2.26,216.34,216.29,1.5457]
[1734541189331,2.312,216.32,216.29,1.5457]
[1734541190525,2.312,216.32,216.28,2.3123]
[1734541191334,2.3121,216.31,216.26,2.3125]
[1734541191937,2.26,216.34,216.26,2.3125]
[1734541193341,2.26,216.34,216.24,11.29573874]
[1734541193837,2.26,216.34,216.23,3.105]
[1734541194336,2.3124,216.28,216.23,5.4179]
[1734541194538,2.26,216.27,216.23,5.4179]
[1734541195039,4.5725,216.27,216.23,5.4179]
[1734541198039,2.26,216.26,216.23,5.4179]
[1734541200041,2.26,216.26,216.23,3.105]
[1734541200242,1.4566,216.37,216.24,11.29573874]
[1734541200243,2.26,216.28,216.24,11.29573874]
[1734541202637,2.26,216.28,216.23,3.105]
[1734541202638,2.26,216.28,216.19,1.4871]
[1734541202838,2.26,216.28,216.04,389.32569992]
[1734541202839,2.26,216.28,216.16,1.5207]
[1734541203340,2.26,216.27,216.16,1.5207]
[1734541203643,2.3131,216.21,216.17,2.3134]
[1734541203845,2.26,216.21,216.17,2.3134]
[1734541204041,2.26,216.21,216.16,1.5207]
[1734541204441,2.3133,216.2,216.16,3.8342]
[1734541204644,2.3133,216.2,216.16,1.5207]
[1734541205644,2.3133,216.2,216.17,2.3135]
[1734541206445,4.5731,216.21,216.17,2.3135]
[1734541207749,2.26,216.2,216.17,2.3135]
[1734541208543,2.26,216.2,216.16,1.5207]
[1734541209247,2.3135,216.17,216.16,1.5207]
[1734541209938,2.26,216.2,216.16,1.5207]
[1734541210144,2.26,216.19,216.16,1.5207]
[1734541210444,2.26,216.21,216.16,1.5207]
[1734541210648,5.63819763,216.25,216.19,2.3132]
[1734541210649,2.313,216.23,216.19,2.3132]
[1734541210839,11.29573874,216.32,216.18,11.29573874]
[1734541211045,2.26,216.31,216.18,11.29573874]
[1734541211338,2.26,216.3,216.18,11.29573874]
[1734541211550,2.3125,216.27,216.18,11.29573874]
[1734541211748,2.3125,216.27,216.16,1.5207]
[1734541211749,2.26,216.3,216.21,11.29573874]
[1734541212350,5.58105467,216.29,216.21,11.29573874]
[1734541212553,7.89335467,216.29,216.24,2.3127]
[1734541213447,2.26,216.28,216.24,2.3127]
[1734541214549,2.26,216.28,216.21,11.29573874]
[1734541214742,2.26,216.28,216.25,2.3126]
[1734541215244,2.26,216.28,216.18,11.29573874]
[1734541215654,2.26,216.28,216.16,1.5207]
[1734541216450,2.3129,216.23,216.18,2.3133]
[1734541216752,2.26,216.22,216.16,1.5207]
[1734541216947,2.26,216.23,216.18,11.29573874]
[1734541218055,2.26,216.25,216.23,2.3128]
[1734541218351,5.46588429,216.3,216.23,7.23291491]
[1734541218549,2.26,216.28,216.23,7.23291491]
[1734541218753,2.26,216.28,216.24,2.3127]
[1734541218953,2.26,216.28,216.23,7.23291491]
[1734541219355,2.26,216.28,216.25,2.3126]
[1734541219555,2.26,216.28,216.25,7.23291491]
[1734541219963,5.65991663,216.33,216.27,7.23291491]
[1734541220257,5.65991663,216.33,216.32,2.3119]
[1734541220456,5.65991663,216.33,216.32,9.54481491]
[1734541220757,7.23291491,216.4,216.32,7.23291491]
[1734541220956,2.26,216.38,216.32,7.23291491]
[1734541221450,2.26,216.38,216.34,7.23291491]
[1734541222455,2.26,216.38,216.35,2.3115]
[1734541222649,2.26,216.38,216.32,7.23291491]
[1734541223654,2.26,216.38,216.34,2.3116]
[1734541223856,4.5714,216.38,216.32,7.23291491]
[1734541224052,2.26,216.38,216.27,13.55206348]
[1734541224253,2.26,216.38,216.32,2.3119]
[1734541224649,2.3114,216.37,216.32,2.3119]
[1734541225655,2.3114,216.37,216.33,2.3118]
[1734541226958,4.5713,216.38,216.33,2.3118]
[1734541229361,4.5713,216.38,216.27,11.29206348]
[1734541230162,4.5713,216.38,216.33,2.3118]
[1734541230860,2.26,216.38,216.32,2.3119]
[1734541231060,13.55206348,216.38,216.25,1.5731]
[1734541231259,11.29206348,216.35,216.25,1.5731]
[1734541231661,11.29206348,216.35,216.25,2.3127]
[1734541232665,2.3121,216.31,216.21,11.29206348]
[1734541232963,2.26,216.3,216.21,11.29206348]
[1734541233471,2.26,216.3,216.27,2.3124]
[1734541234061,2.26,216.3,216.21,11.29206348]
[1734541234260,4.5722,216.3,216.26,2.3126]
[1734541234759,2.3123,216.29,216.25,2.3126]
[1734541235560,4.5722,216.3,216.25,2.3126]
[1734541237571,4.5722,216.3,216.26,2.3125]
[1734541241261,2.26,216.31,216.24,11.29206348]
[1734541241465,2.26,216.32,216.25,1.5437]
[1734541241672,4.5719,216.32,216.27,2.3124]
[1734541243373,2.3121,216.31,216.27,2.3124]
[1734541244066,2.3124,216.28,216.25,1.5437]
[1734541244266,2.26,216.27,216.16,2.9948]
[1734541244561,2.26,216.26,216.2,7.22964975]
[1734541245071,2.3127,216.25,216.21,2.313]
[1734541246374,2.3127,216.25,216.22,7.22964975]
[1734541247777,2.26,216.26,216.18,1.5124]
[1734541247970,2.26,216.26,216.19,9.54294975]
[1734541249473,2.3129,216.23,216.19,9.54294975]
[1734541250381,2.26,216.26,216.21,7.22964975]
[1734541250578,4.5726,216.26,216.22,2.313]
[1734541250782,2.26,216.26,216.22,2.313]
[1734541251180,4.5726,216.26,216.23,9.54254975]
[1734541255282,4.5726,216.26,216.23,7.22964975]
[1734541257085,2.26,216.26,216.23,7.22964975]
[1734541257384,9.48964975,216.26,216.19,7.22964975]
[1734541258383,7.22964975,216.22,216.16,1.5139]
[1734541258585,2.26,216.21,216.15,7.22964975]
[1734541258786,2.26,216.21,216.13,7.22964975]
[1734541258985,7.22964975,216.2,216.13,7.22964975]
[1734541259587,2.26,216.21,216.15,7.22964975]
[1734541260083,2.3135,216.18,216.15,7.22964975]
[1734541260284,2.26,216.21,216.17,7.22964975]
[1734541261189,4.5732,216.21,216.17,9.54314975]
[1734541261489,2.26,216.21,216.17,7.22964975]
[1734541262188,2.3133,216.2,216.17,7.22964975]
[1734541262988,2.3133,216.2,216.16,2.3136]
[1734541265192,2.26,216.21,216.15,7.22964975]
[1734541265388,2.26,216.21,216.13,7.22964975]
[1734541265585,7.22964975,216.2,216.13,7.22964975]
[1734541265888,7.22964975,216.18,216.11,8.80884975]
[1734541266188,2.3139,216.14,216.11,8.80884975]
[1734541266391,7.22964975,216.18,216.11,8.80884975]
[1734541266392,2.26,216.15,216.11,8.80884975]
[1734541266694,4.5738,216.15,216.11,11.12294975]
[1734541266884,7.22964975,216.22,216.13,7.22964975]
[1734541267085,2.26,216.21,216.13,7.22964975]
[1734541267789,2.26,216.21,216.14,2.3138]
[1734541267790,2.3134,216.18,216.14,2.3138]
[1734541269496,2.26,216.21,216.13,7.22964975]
[1734541269695,2.3135,216.17,216.13,9.54354975]
[1734541270297,7.22964975,216.2,216.11,1.5792]
[1734541270497,2.3137,216.16,216.12,2.314]
[1734541270891,2.26,216.21,216.15,7.22964975]
[1734541271599,4.6238,216.33,216.19,7.22964975]
[1734541271793,2.26,216.28,216.23,7.22964975]
[1734541271999,2.3123,216.29,216.25,7.22964975]
[1734541272396,2.26,216.3,216.23,7.22964975]
[1734541272596,2.3124,216.28,216.23,7.22964975]
[1734541272801,9.54204975,216.28,216.2,1.5984]
[1734541273001,9.54204975,216.28,216.23,2.3128]
[1734541273205,2.3124,216.28,216.23,2.3128]
[1734541275105,2.3127,216.25,216.21,2.313]
[1734541275302,2.26,216.25,216.2,8.82804975]
[1734541275698,7.22964975,216.24,216.13,2.26]
[1734541275902,7.22964975,216.24,216.16,7.22964975]
[1734541276207,2.26,216.25,216.12,7.22964975]
[1734541276208,7.22964975,216.18,216.12,7.22964975]
[1734541276508,2.26,216.17,216.1,7.22964975]
[1734541276702,2.3138,216.15,216.1,9.54394975]
[1734541277099,2.26,216.17,216.1,7.22964975]
[1734541277302,2.3137,216.16,216.12,2.3141]
[1734541277808,2.3137,216.16,216.12,9.54374975]
[1734541278009,2.3138,216.15,216.11,2.3142]
[1734541278604,2.26,216.17,216.09,4.5889]
[1734541278807,2.26,216.17,216.13,2.3139]
[1734541280000,4.5736,216.17,216.13,2.3139]
[1734541280605,11.31140819,216.25,216.11,11.31140819]
[1734541280810,2.26,216.24,216.14,11.31140819]
[1734541281306,2.3131,216.22,216.17,2.3135]
[1734541282402,2.3131,216.22,216.18,2.3134]
[1734541284013,2.3131,216.22,216.14,11.31140819]
[1734541284208,2.3131,216.22,216.19,2.3133]
[1734541284405,2.3129,216.23,216.14,11.31140819]
[1734541284908,2.3129,216.23,216.17,11.31140819]
[1734541285908,2.3129,216.23,216.19,2.3132]
[1734541286314,2.26,216.24,216.21,2.313]
[1734541286813,5.45296004,216.26,216.18,1.4441]
[1734541286814,2.26,216.25,216.22,2.3129]
[1734541287018,2.26,216.25,216.2,11.31140819]
[1734541287519,2.26,216.28,216.2,11.31140819]
[1734541287816,2.312,216.31,216.2,11.31140819]
[1734541288111,191.35630292,216.44,216.18,3.0318]
[1734541288112,11.31140819,216.37,216.23,11.31140819]
[1734541288314,2.3117,216.35,216.26,11.31140819]
[1734541288513,2.3117,216.35,216.27,1.4441]
[1734541288710,5.4382546,216.34,216.27,1.4441]
[1734541288914,2.3123,216.29,216.27,1.4441]
[1734541290412,2.26,216.31,216.2,11.31140819]
[1734541290617,13.57140819,216.31,216.2,11.31140819]
[1734541291019,13.57140819,216.31,216.22,2.313]
[1734541291315,13.57140819,216.31,216.2,11.31140819]
[1734541291516,2.3122,216.3,216.25,2.3126]
[1734541291717,2.3122,216.3,216.2,11.31140819]
[1734541292220,2.3122,216.3,216.25,2.3126]
[1734541292416,2.3122,216.29,216.25,2.3126]
[1734541295313,5.4382546,216.34,216.23,11.31140819]
[1734541295520,2.3121,216.31,216.23,11.31140819]
[1734541295719,2.26,216.33,216.2,11.31140819]
[1734541295918,2.3126,216.26,216.22,2.313]
[1734541297225,2.26,216.27,216.2,2.3131]
[1734541297416,2.26,216.27,216.17,1.4623]
[1734541297625,11.31140819,216.25,216.11,11.31140819]
[1734541297925,2.26,216.27,216.09,3.0067]
[1734541297926,11.31140819,216.19,216.09,3.0067]
[1734541298116,2.26,216.18,216.09,3.0067]
[1734541298521,2.26,216.18,216.09,5.3211]
[1734541298522,2.3138,216.15,216.09,5.3211]
[1734541299322,2.26,216.18,216.09,5.3211]
[1734541299622,2.3139,216.14,216.09,5.3211]
[1734541301128,2.26,216.13,216.09,1.4891]
[1734541301329,2.26,216.2,216.11,11.31140819]
[1734541301625,2.3134,216.18,216.14,2.3138]
[1734541301822,2.3134,216.18,216.11,11.31140819]
[1734541302328,2.3134,216.18,216.14,2.3138]
[1734541303326,2.26,216.2,216.09,1.4891]
[1734541304628,2.26,216.2,216.11,11.31140819]
[1734541305328,11.31140819,216.28,216.14,11.31140819]
[1734541305630,2.313,216.22,216.18,2.3134]
[1734541305927,4.573,216.22,216.18,2.3134]
[1734541306830,2.26,216.22,216.15,1.518]
[1734541307030,2.26,216.22,216.11,11.31140819]
[1734541307226,13.57140819,216.22,216.09,1.4891]
[1734541307431,2.314,216.13,216.09,3.8035]
[1734541308426,2.3142,216.11,216.09,1.4891]
[1734541308832,2.26,216.14,216.09,1.4891]
[1734541309029,2.314,216.13,216.09,1.4891]
[1734541309252,2.26,216.14,216.09,1.4891]
[1734541309830,2.3141,216.12,216.09,1.4891]
[1734541310030,2.26,216.14,216.09,3.8034]
[1734541310428,2.314,216.13,216.09,3.8034]
[1734541310633,2.26,216.14,216.09,3.8034]
[1734541311537,2.26,216.14,216.08,2.3145]
[1734541311735,2.26,216.14,216.05,1.5698]
[1734541312639,11.31140819,216.19,216.05,12.88120819]
[1734541312838,11.31140819,216.22,216.08,11.31140819]
[1734541313037,2.26,216.21,216.08,11.31140819]
[1734541313238,2.3132,216.2,216.15,2.3137]
[1734541313630,2.26,216.19,216.15,2.3137]
[1734541313835,2.26,216.19,216.08,11.31140819]
[1734541315142,2.26,216.19,216.11,11.31140819]
[1734541315945,2.26,216.19,216.16,2.3136]
[1734541316941,5.57653044,216.24,216.14,11.31140819]
[1734541317143,11.31140819,216.31,216.17,11.31140819]
[1734541317341,2.26,216.3,216.18,1.4539]
[1734541317538,2.3123,216.28,216.23,2.3128]
[1734541318041,2.3122,216.29,216.24,2.3127]
[1734541319438,2.26,216.28,216.26,2.3125]
[1734541319635,2.26,216.29,216.26,2.3125]
[1734541319833,5.59275298,216.3,216.26,2.3125]
[1734541320133,2.26,216.29,216.28,2.3123]
[1734541320333,11.31140819,216.37,216.23,11.31140819]
[1734541320544,2.26,216.36,216.24,1.4853]
[1734541320737,2.3117,216.35,216.24,1.4853]
[1734541320941,2.3117,216.35,216.25,1.467]
[1734541321343,2.3118,216.33,216.27,2.3125]
[1734541321549,1.4462,216.4,216.26,11.31140819]
[1734541321743,2.26,216.39,216.29,11.31140819]
[1734541321938,2.3113,216.38,216.31,2.3119]
[1734541322147,2.26,216.37,216.31,2.3119]
[1734541322347,2.26,216.36,216.26,11.31140819]
[1734541322543,2.26,216.36,216.27,2.3124]
[1734541322544,2.3118,216.34,216.27,2.3124]
[1734541322745,2.26,216.36,216.27,2.3124]
[1734541322945,2.26,216.36,216.25,1.467]
[1734541323940,2.3119,216.33,216.27,2.3124]
[1734541324147,2.26,216.36,216.27,2.3124]
[1734541324344,2.26,216.36,216.25,1.467]
[1734541324648,2.3119,216.32,216.25,1.467]
[1734541324849,2.26,216.31,216.25,1.467]
[1734541325441,2.26,216.34,216.26,11.31140819]
[1734541326343,11.31140819,216.43,216.29,11.31140819]
[1734541326543,2.24,216.42,216.32,11.31140819]
[1734541326750,2.24,216.41,216.35,2.3116]
[1734541326951,2.24,216.4,216.35,2.3116]
[1734541327250,2.24,216.39,216.35,2.3116]
[1734541327843,2.24,216.44,216.38,11.31140819]
[1734541328046,2.24,216.45,216.38,11.31140819]
[1734541328250,5.50844815,216.49,216.41,11.31140819]
[1734541328446,5.50844815,216.49,216.39,1.4754]
[1734541328646,5.50844815,216.49,216.4,1.4719]
[1734541328846,16.81985634,216.49,216.39,2.9949]
[1734541329142,2.3109,216.42,216.39,1.4754]
[1734541329348,2.24,216.41,216.39,1.4754]
[1734541329555,2.24,216.41,216.35,11.31140819]
[1734541329845,2.24,216.41,216.37,2.3114]
[1734541330248,2.24,216.41,216.33,21.20376472]
[1734541330441,2.24,216.41,216.39,2.3111]
[1734541330954,4.5511,216.41,216.36,2.3115]
[1734541331361,2.24,216.41,216.33,1.5903]
[1734541332148,2.24,216.41,216.29,19.52666472]
[1734541332449,2.24,216.41,216.29,21.83886472]
[1734541332657,2.24,216.41,216.29,3.7841]
[1734541332956,2.24,216.41,216.29,1.4719]
[1734541333151,2.3116,216.35,216.29,1.4719]
[1734541333954,2.24,216.36,216.29,1.4719]
[1734541334153,1.588,216.45,216.29,19.52666472]
[1734541334154,2.24,216.39,216.29,19.52666472]
[1734541334354,2.24,216.43,216.29,19.52666472]
[1734541334555,2.3111,216.4,216.34,2.3117]
[1734541334757,2.3111,216.4,216.29,19.52666472]
[1734541334950,2.24,216.43,216.29,19.52666472]
[1734541335151,2.24,216.43,216.33,2.3118]
[1734541335354,2.24,216.43,216.29,19.52666472]
[1734541335654,2.3111,216.4,216.33,2.3117]
[1734541335957,2.24,216.43,216.33,18.05476472]
[1734541336160,5.50844815,216.49,216.37,18.05476472]
[1734541336355,7.74844815,216.49,216.38,4.5135]
[1734541337255,5.50844815,216.49,216.38,4.5135]
[1734541337461,2.3102,216.48,216.42,2.3108]
[1734541338049,2.3102,216.48,216.38,4.5135]
[1734541338050,2.24,216.49,216.38,4.5135]
[1734541338255,1.5466,216.57,216.38,4.5135]
[1734541338256,4.5501,216.5,216.44,2.3106]
[1734541338651,2.3101,216.5,216.44,2.3106]
[1734541338852,2.3104,216.47,216.41,20.36566472]
[1734541339055,2.24,216.49,216.38,4.5135]
[1734541339260,2.24,216.49,216.38,1.5]
[1734541339461,2.3112,216.4,216.34,2.3117]
[1734541340552,2.24,216.41,216.34,2.3117]
[1734541340754,2.24,216.41,216.3,2.24]
[1734541340959,2.24,216.41,216.29,18.05476472]
[1734541341463,2.3113,216.38,216.3,2.3121]
[1734541341662,2.24,216.41,216.3,2.3121]
[1734541341857,2.24,216.41,216.27,4.4628]
[1734541342664,18.05476472,216.39,216.27,2.941]
[1734541343061,18.05476472,216.39,216.27,1.4832]
[1734541343269,18.05476472,216.39,216.21,19.65496472]
[1734541343962,2.3124,216.28,216.21,21.96796472]
[1734541344167,2.24,216.27,216.21,1.6002]
[1734541344465,2.24,216.27,216.17,27.4765061]
[1734541344466,2.24,216.27,216.17,19.60356472]
[1734541345567,2.24,216.27,216.18,2.24]
[1734541345769,2.24,216.27,216.17,1.5488]
[1734541345972,2.24,216.27,216.17,19.60356472]
[1734541346571,2.3126,216.26,216.17,19.60356472]
[1734541346770,2.24,216.27,216.17,19.60356472]
[1734541347169,4.5525,216.27,216.21,2.313]
[1734541347772,2.24,216.27,216.17,19.60356472]
[1734541348271,2.313,216.22,216.17,21.91696472]
[1734541349071,2.24,216.27,216.18,2.3134]
[1734541349265,2.24,216.27,216.17,19.60356472]
[1734541349266,2.24,216.27,216.17,1.5488]
[1734541349467,2.24,216.27,216.14,1.4912]
[1734541349766,20.29476472,216.27,216.14,1.4912]
[1734541349970,20.29476472,216.27,216.1,2.24]
[1734541349971,20.29476472,216.27,216.09,18.05476472]
[1734541350276,20.29476472,216.27,216.1,2.3143]
[1734541350776,2.3136,216.17,216.1,2.3143]
[1734541350970,2.24,216.17,216.1,2.3143]
[1734541352079,2.24,216.17,216.09,18.05476472]
[1734541352272,2.24,216.17,216.11,2.3142]
[1734541352769,2.3135,216.18,216.09,18.05476472]
[1734541352967,2.24,216.2,216.09,18.05476472]
[1734541354076,2.24,216.2,216.07,2.24]
[1734541354279,2.3138,216.15,216.07,2.24]
[1734541354478,4.5538,216.15,216.07,2.24]
[1734541354777,4.5538,216.15,216.1,2.3143]
[1734541354981,2.3139,216.14,216.1,2.3143]
[1734541355180,2.24,216.15,216.07,7.83338198]
[1734541355379,2.24,216.15,216.09,2.3143]
[1734541355580,4.5538,216.15,216.07,7.83338198]
[1734541356175,2.3138,216.15,216.07,7.83338198]
[1734541356375,2.3139,216.14,216.1,2.3142]
[1734541356581,2.3139,216.14,216.07,7.83338198]
[1734541357282,2.24,216.16,216.06,1.5903]
[1734541357577,2.314,216.13,216.08,2.3144]
[1734541357783,2.24,216.16,216.06,1.5903]
[1734541358283,4.5537,216.16,216.1,2.3142]
[1734541358581,2.24,216.16,216.1,2.3142]
[1734541358782,2.3139,216.14,216.1,2.3142]
[1734541359782,2.24,216.16,216.06,1.5903]
[1734541360079,2.24,216.16,216.11,2.3142]
[1734541360286,2.24,216.16,216.09,18.05476472]
[1734541360474,2.24,216.16,216.09,20.36906472]
[1734541360979,2.24,216.16,216.09,20.36916472]
[1734541361582,2.3139,216.14,216.09,20.36916472]
[1734541361785,2.24,216.16,216.09,18.05476472]
[1734541362083,13.9,216.27,216.09,18.05476472]
[1734541362084,19.60146472,216.28,216.09,18.05476472]
[1734541362284,2.3133,216.19,216.1,2.24]
[1734541362485,2.24,216.21,216.16,2.3136]
[1734541362894,2.3132,216.2,216.16,2.3136]
[1734541363078,2.24,216.21,216.16,2.3136]
[1734541363279,2.24,216.21,216.1,2.24]
[1734541363481,2.3133,216.19,216.15,2.3137]
[1734541363681,2.3133,216.19,216.1,2.24]
[1734541363682,2.24,216.21,216.1,2.24]
[1734541364183,2.3132,216.2,216.16,2.3136]
[1734541364380,5.51845592,216.22,216.1,2.24]
[1734541364586,7.75845592,216.22,216.1,2.24]
[1734541364883,7.75845592,216.22,216.09,18.05476472]
[1734541365284,7.75845592,216.22,216.12,2.3141]
[1734541365477,7.75845592,216.22,216.09,18.05476472]
[1734541365881,7.75845592,216.22,216.1,2.3142]
[1734541366482,2.3138,216.15,216.1,2.3142]
[1734541366683,2.24,216.16,216.1,2.3142]
[1734541366885,2.24,216.16,216.08,2.3144]
[1734541368282,2.24,216.16,216.06,3.8303]
[1734541368486,2.314,216.13,216.09,2.3144]
[1734541369184,2.24,216.16,216.06,1.5903]
[1734541369584,2.314,216.13,216.05,1.4997]
[1734541369783,20.29476472,216.16,216.05,1.4997]
[1734541370016,20.29476472,216.16,215.99,1.4884]
[1734541370184,20.29476472,216.16,215.99,2.9778]
[1734541370383,2.3149,216.04,216.0,2.3152]
[1734541371182,2.24,216.05,215.99,2.9778]
[1734541371387,2.315,216.03,215.99,5.2932]
[1734541371687,2.24,216.05,215.99,1.4894]
[1734541372292,2.24,216.05,215.93,20.31476472]
[1734541372492,2.24,216.05,215.91,1.4899]
[1734541372690,2.3157,215.97,215.92,2.3162]
[1734541373484,2.26,215.99,215.91,1.4899]
[1734541373880,2.26,215.99,215.88,1.5049]
[1734541374086,2.3161,215.93,215.88,1.5049]
[1734541374286,2.26,215.93,215.85,19.60906472]
[1734541375889,2.26,215.93,215.86,1.5734]
[1734541376782,2.3163,215.91,215.86,1.5734]
[1734541377492,2.3163,215.91,215.86,3.8902]
[1734541378493,2.3165,215.89,215.86,1.5734]
[1734541379893,2.26,215.93,215.85,1.5543]
[1734541380692,2.26,215.97,215.85,19.60906472]
[1734541380895,2.26,215.97,215.86,1.5054]
[1734541381093,2.316,215.95,215.86,1.5054]
[1734541381392,5.67076684,215.96,215.86,1.5054]
[1734541381591,2.3161,215.93,215.86,1.5054]
[1734541381787,5.67076684,215.96,215.86,1.5054]
[1734541382293,2.316,215.95,215.87,1.4989]
[1734541382894,2.316,215.94,215.87,1.4989]
[1734541383295,5.67076684,215.96,215.87,1.4989]
[1734541383496,5.67076684,215.96,215.87,3.8155]
[1734541383693,5.67076684,215.96,215.8,5.42377641]
[1734541383889,2.3169,215.86,215.81,2.3173]
[1734541384095,2.26,215.87,215.81,2.3173]
[1734541384294,2.26,215.87,215.78,18.05476472]
[1734541384493,2.26,215.87,215.78,23.60601375]
[1734541385099,2.26,215.87,215.83,2.3171]
[1734541385698,2.317,215.85,215.78,18.05476472]
[1734541386293,2.26,215.87,215.75,10.08933574]
[1734541386294,2.3172,215.83,215.75,10.08933574]
[1734541386497,2.26,215.87,215.75,4.4808]
[1734541387797,2.26,215.86,215.78,18.05476472]
[1734541388103,25.27923156,215.96,215.78,20.31476472]
[1734541388303,2.26,215.95,215.78,20.31476472]
[1734541389401,5.67076684,215.96,215.78,20.31476472]
[1734541389605,2.26,215.94,215.82,18.05476472]
[1734541389799,2.26,215.94,215.83,2.26]
[1734541389996,2.3164,215.91,215.86,2.3168]
[1734541390302,2.3164,215.91,215.83,2.26]
[1734541390599,2.3164,215.9,215.86,2.3168]
[1734541391904,2.26,215.94,215.83,2.26]
[1734541392205,2.26,215.94,215.79,2.26]
[1734541392405,2.26,215.94,215.78,18.05476472]
[1734541392606,2.26,215.94,215.83,2.3172]
[1734541392607,2.3168,215.87,215.83,2.3172]
[1734541393605,2.26,215.88,215.75,4.4808]
[1734541393906,2.3169,215.86,215.81,2.3173]
[1734541394405,2.3169,215.86,215.76,2.26]
[1734541394607,2.317,215.85,215.81,2.3174]
[1734541394801,2.26,215.88,215.76,2.26]
[1734541395007,2.26,215.88,215.75,4.4808]
[1734541395506,20.31476472,215.88,215.75,4.4808]
[1734541395906,2.3176,215.79,215.75,6.7987]
[1734541396403,2.26,215.81,215.75,4.4808]
[1734541396604,2.3177,215.78,215.75,4.4808]
[1734541397311,2.26,215.81,215.69,5.62890744]
[1734541398408,2.26,215.81,215.71,2.3184]
[1734541398409,2.318,215.76,215.71,2.3184]
[1734541398610,2.318,215.76,215.67,4.5588]
[1734541399108,2.3178,215.77,215.67,4.5588]
[1734541399308,2.26,215.81,215.67,4.5588]
[1734541399715,2.26,215.81,215.68,5.52749022]
[1734541400407,2.3178,215.78,215.74,2.3181]
[1734541401717,5.66443882,215.85,215.68,5.52749022]
[1734541402017,2.26,215.84,215.71,18.05476472]
[1734541402217,53.0,215.93,215.75,18.05476472]
[1734541402419,2.3167,215.88,215.76,3.0997]
[1734541402717,2.26,215.92,215.77,3.7398]
[1734541402908,2.3167,215.88,215.82,2.3172]
[1734541403112,2.3167,215.88,215.77,3.7398]
[1734541403113,2.26,215.87,215.77,3.7398]
[1734541403516,2.3165,215.89,215.85,2.3169]
[1734541403719,2.26,215.9,215.77,3.7398]
[1734541405216,2.3167,215.87,215.77,3.7398]
[1734541405415,2.3167,215.87,215.79,5.46371908]
[1734541406320,2.3167,215.87,215.83,2.3171]
[1734541406716,2.26,215.9,215.83,2.3171]
[1734541406922,2.3169,215.86,215.81,2.3173]
[1734541407622,2.26,215.85,215.79,2.3175]
[1734541408021,2.3173,215.82,215.79,2.3175]
[1734541408221,2.26,215.85,215.79,2.3175]
[1734541408920,2.26,215.85,215.77,1.4798]
[1734541409132,53.0,215.93,215.77,1.4798]
[1734541409313,2.26,215.92,215.77,1.4798]
[1734541409514,2.26,215.92,215.78,2.26]
[1734541410421,2.3167,215.88,215.82,2.3173]
[1734541410618,2.3167,215.88,215.78,2.26]
[1734541410619,44.21758348,215.98,215.79,18.05476472]
[1734541410815,2.26,216.0,215.83,18.05476472]
[1734541411021,5.42751087,215.99,215.93,2.3161]